fUST/lending_fUST_20250908
["ID","MTS","AMOUNT","RATE_DAILY","PERIOD"]
[384222335,1757293850139,-1472.44,0.00014794,2]
[384222337,1757293850149,-480.0,0.00014794,2]
[384222339,1757293850159,-921.72,0.00014794,2]
[384222341,1757293850168,-480.0,0.00014794,2]
[384222343,1757293850177,-699.17,0.00014794,2]
[384222345,1757293850186,-480.0,0.00014794,2]
[384222347,1757293850195,-2492.17,0.00014794,2]
[384222349,1757293850204,-480.0,0.00014794,2]
[384222351,1757293850214,-607.49,0.00014794,2]
[384222353,1757293850223,-205.82,0.00014794,2]
[384222355,1757293850232,-1882.27,0.00014794,2]
[384222357,1757293850242,-747.39,0.00014794,2]
[384222359,1757293850252,-189.20350243,0.000148,2]
[384222361,1757293850262,-151.0,0.000148,2]
[384222363,1757293850271,-1461.8471,0.000148,2]
[384222365,1757293850282,-1500.0,0.0001485,2]
[384222367,1757293850291,-584.72792781,0.000149,2]
[384222369,1757293850301,-445.919906,0.000149,2]
[384222370,1757293850310,-445.91990598,0.000149,2]
[384222372,1757293850319,-445.91990598,0.000149,2]
[384222374,1757293850328,-1200.0,0.00014957,2]
[384222376,1757293850337,-259.38808302,0.00015,2]
[384222378,1757293850347,-1001.45384746,0.00015,2]
[384222380,1757293850357,-160.0,0.00015,2]
[384222382,1757293850366,-151.0,0.00015,2]
[384222384,1757293850375,-420.0,0.00015,2]
[384222386,1757293850384,-420.0,0.00015,2]
[384222388,1757293850394,-300.0,0.00015,2]
[384222390,1757293850403,-420.0,0.00015,2]
[384222392,1757293850412,-500.0,0.00015024,2]
[384222394,1757293850422,-500.0,0.00015024,2]
[384222396,1757293850432,-500.0,0.00015024,2]
[384222398,1757293850441,-500.0,0.00015024,2]
[384222400,1757293850452,-500.0,0.00015024,2]
[384222402,1757293850461,-1903.67134503,0.00015068,2]
[384222403,1757293850470,-809.0,0.00015068,2]
[384222405,1757293850480,-480.0,0.00015068,2]
[384222407,1757293850489,-528.52,0.00015068,2]
[384222409,1757293850499,-480.0,0.00015068,2]
[384222411,1757293850509,-480.0,0.00015068,2]
[384222413,1757293850520,-1030.35,0.00015068,2]
[384222415,1757293850529,-480.0,0.00015068,2]
[384222417,1757293850539,-562.31,0.00015068,2]
[384222419,1757293850549,-693.77,0.00015068,2]
[384222421,1757293850564,-691.63,0.00015068,2]
[384222423,1757293850574,-518.61,0.00015068,2]
[384222425,1757293850583,-546.97,0.00015068,2]
[384222427,1757293850594,-458.79178538,0.00015068,2]
[384222429,1757293850606,-480.0,0.00015068,2]
[384222431,1757293850616,-480.0,0.00015068,2]
[384222433,1757293850626,-427.84863127,0.00015068,2]
[384222435,1757293850637,-480.0,0.00015068,2]
[384222437,1757293850647,-480.0,0.00015068,2]
[384222439,1757293850657,-760.44,0.00015068,2]
[384222441,1757293850666,-480.0,0.00015068,2]
[384222443,1757293850676,-517.44,0.00015068,2]
[384222445,1757293850687,-858.83,0.00015068,2]
[384222447,1757293850697,-501.23,0.00015068,2]
[384222449,1757293850707,-480.0,0.00015068,2]
[384222451,1757293850717,-588.46,0.00015068,2]
[384222453,1757293850726,-480.0,0.00015068,2]
[384222455,1757293850736,-480.0,0.00015068,2]
[384222457,1757293850745,-480.0,0.00015068,2]
[384222459,1757293850754,-781.27,0.00015068,2]
[384222461,1757293850763,-480.0,0.00015068,2]
[384222463,1757293850773,-480.0,0.00015068,2]
[384222465,1757293850783,-371.79,0.00015068,2]
[384222467,1757293850793,-480.0,0.00015068,2]
[384222469,1757293850803,-612.64,0.00015068,2]
[384222471,1757293850813,-480.0,0.00015068,2]
[384222473,1757293850822,-480.0,0.00015068,2]
[384222475,1757293850831,-480.0,0.00015068,2]
[384222477,1757293850841,-480.0,0.00015068,2]
[384222479,1757293850850,-552.52,0.00015068,2]
[384222481,1757293850860,-850.07,0.00015068,2]
[384222483,1757293850869,-480.0,0.00015068,2]
[384222485,1757293850879,-6642.13,0.00015068,2]
[384222487,1757293850889,-673.36,0.00015068,2]
[384222489,1757293850898,-1174.67,0.00015068,2]
[384222491,1757293850907,-480.0,0.00015068,2]
[384222493,1757293850916,-517.58,0.00015068,2]
[384222495,1757293850925,-999.82,0.00015068,2]
[384222497,1757293850935,-2044.08,0.00015068,2]
[384222499,1757293850944,-674.31,0.00015068,2]
[384222501,1757293850953,-480.0,0.00015068,2]
[384222503,1757293850963,-480.0,0.00015068,2]
[384222505,1757293850971,-1129.35,0.00015068,2]
[384222506,1757293850981,-1758.04,0.00015068,2]
[384222508,1757293850990,-3605.43,0.00015068,2]
[384222510,1757293850999,-509.99,0.00015068,2]
[384222512,1757293851008,-1607.6,0.00015068,2]
[384222514,1757293851017,-480.0,0.00015068,2]
[384222516,1757293851027,-480.0,0.00015068,2]
[384222518,1757293851036,-480.0,0.00015068,2]
[384222520,1757293851045,-601.41,0.00015068,2]
[384222522,1757293851054,-689.51,0.00015068,2]
[384222524,1757293851063,-836.42,0.00015068,2]
[384222526,1757293851073,-480.0,0.00015068,2]
[384222528,1757293851082,-670.46,0.00015068,2]
[384222530,1757293851092,-480.0,0.00015068,2]
[384222532,1757293851101,-480.0,0.00015068,2]
[384222533,1757293851111,-480.0,0.00015068,2]
[384222535,1757293851121,-480.0,0.00015068,2]
[384222537,1757293851131,-1060.67,0.00015068,2]
[384222539,1757293851140,-480.0,0.00015068,2]
[384222541,1757293851149,-480.0,0.00015068,2]
[384222543,1757293851158,-15103.81,0.00015068,2]
[384222545,1757293851167,-480.0,0.00015068,2]
[384222547,1757293851177,-4210.01,0.00015068,2]
[384222549,1757293851187,-480.0,0.00015068,2]
[384222551,1757293851196,-648.02,0.00015068,2]
[384222553,1757293851206,-850.4,0.00015068,2]
[384222555,1757293851215,-793.9,0.00015068,2]
[384222557,1757293851225,-1124.8,0.00015068,2]
[384222559,1757293851235,-1960.88,0.00015068,2]
[384222561,1757293851244,-738.44,0.00015068,2]
[384222563,1757293851253,-2121.4,0.00015068,2]
[384222565,1757293851263,-3405.04,0.00015068,2]
[384222567,1757293851272,-1342.85,0.00015068,2]
[384222569,1757293851281,-815.74,0.00015068,2]
[384222571,1757293851290,-480.0,0.00015068,2]
[384222573,1757293851300,-1184.01,0.00015068,2]
[384222575,1757293851309,-994.51,0.00015068,2]
[384222577,1757293851318,-481.25,0.00015068,2]
[384222579,1757293851328,-480.0,0.00015068,2]
[384222581,1757293851339,-480.0,0.00015068,2]
[384222583,1757293851349,-656.64,0.00015068,2]
[384222585,1757293851358,-1618.62,0.00015068,2]
[384222586,1757293851367,-480.0,0.00015068,2]
[384222588,1757293851377,-544.3,0.00015068,2]
[384222590,1757293851386,-757.5,0.00015068,2]
[384222592,1757293851395,-1933.15,0.00015068,2]
[384222594,1757293851405,-556.54,0.00015068,2]
[384222596,1757293851415,-480.0,0.00015068,2]
[384222598,1757293851425,-586.27,0.00015068,2]
[384222600,1757293851435,-795.65,0.00015068,2]
[384222602,1757293851445,-1472.44,0.00015068,2]
[384222604,1757293851455,-921.72,0.00015068,2]
[384222606,1757293851464,-480.0,0.00015068,2]
[384222608,1757293851474,-699.17,0.00015068,2]
[384222610,1757293851482,-480.0,0.00015068,2]
[384222612,1757293851491,-2492.17,0.00015068,2]
[384222614,1757293851500,-480.0,0.00015068,2]
[384222616,1757293851510,-607.49,0.00015068,2]
[384222618,1757293851519,-1882.27,0.00015068,2]
[384222620,1757293851528,-747.39,0.00015068,2]
[384222622,1757293851538,-1700.851689,0.00015068,2]
[384222623,1757293851547,-501.7478688,0.00015102,2]
[384222625,1757293851561,-500.0,0.00015102,2]
[384222627,1757293851570,-500.0,0.00015102,2]
[384222629,1757293851579,-500.0,0.00015102,2]
[384222631,1757293851588,-500.0,0.00015102,2]
[384222633,1757293851598,-263.84705085,0.00015102,2]
[384222635,1757293851607,-500.0,0.00015102,2]
[384222637,1757293851617,-505.6246551,0.00015102,2]
[384222639,1757293851628,-168.40390982,0.00015102,2]
[384222640,1757293851638,-502.89507543,0.00015102,2]
[384222641,1757293851650,-500.0,0.00015102,2]
[384222642,1757293851660,-500.0,0.00015102,2]
[384222643,1757293851670,-322.77010658,0.00015102,2]
[384222644,1757293851679,-500.0,0.00015102,2]
[384222645,1757293851688,-500.0,0.00015102,2]
[384222646,1757293851697,-500.0,0.00015102,2]
[384222647,1757293851706,-4509.26510886,0.00015105,2]
[384222648,1757293851715,-1000.0,0.00015131,2]
[384222649,1757293851724,-1000.0,0.00015131,2]
[384222650,1757293851733,-1000.0,0.00015131,2]
[384222651,1757293851743,-336.24075402,0.00015167,2]
[384222654,1757293851845,-982.46702808,0.00015167,2]
[384222656,1757293851855,-151.0,0.000152,2]
[384222658,1757293851865,-151.0,0.000152,2]
[384222660,1757293851874,-151.0,0.000152,2]
[384222662,1757293851884,-151.0,0.000152,2]
[384222664,1757293851893,-500.0,0.00015205,2]
[384222666,1757293851903,-1000.0,0.00015205,2]
[384222668,1757293851912,-1000.0,0.00015328,2]
[384222670,1757293851921,-500.0,0.00015328,2]
[384222672,1757293851933,-1000.0,0.00015328,2]
[384222673,1757293851943,-809.0,0.00015342,2]
[384222675,1757293851952,-480.0,0.00015342,2]
[384222677,1757293851962,-528.52,0.00015342,2]
[384222679,1757293851972,-480.0,0.00015342,2]
[384222681,1757293851983,-1030.35,0.00015342,2]
[384222684,1757293851993,-480.0,0.00015342,2]
[384222686,1757293852003,-562.31,0.00015342,2]
[384222687,1757293852012,-693.77,0.00015342,2]
[384222689,1757293852022,-691.63,0.00015342,2]
[384222691,1757293852032,-518.61,0.00015342,2]
[384222693,1757293852042,-546.97,0.00015342,2]
[384222695,1757293852051,-480.0,0.00015342,2]
[384222697,1757293852061,-480.0,0.00015342,2]
[384222699,1757293852071,-760.44,0.00015342,2]
[384222701,1757293852080,-480.0,0.00015342,2]
[384222703,1757293852090,-517.44,0.00015342,2]
[384222705,1757293852100,-858.83,0.00015342,2]
[384222707,1757293852110,-501.23,0.00015342,2]
[384222709,1757293852119,-324.67319829,0.00015342,2]
[384222711,1757293852128,-588.46,0.00015342,2]
[384222713,1757293852138,-480.0,0.00015342,2]
[384222715,1757293852147,-480.0,0.00015342,2]
[384222717,1757293852157,-781.27,0.00015342,2]
[384222719,1757293852166,-480.0,0.00015342,2]
[384222721,1757293852175,-480.0,0.00015342,2]
[384222723,1757293852185,-612.64,0.00015342,2]
[384222725,1757293852194,-480.0,0.00015342,2]
[384222727,1757293852203,-480.0,0.00015342,2]
[384222729,1757293852212,-480.0,0.00015342,2]
[384222731,1757293852221,-480.0,0.00015342,2]
[384222733,1757293852231,-552.52,0.00015342,2]
[384222735,1757293852240,-850.07,0.00015342,2]
[384222737,1757293852249,-480.0,0.00015342,2]
[384222739,1757293852260,-6642.13,0.00015342,2]
[384222741,1757293852270,-673.36,0.00015342,2]
[384222743,1757293852279,-1174.67,0.00015342,2]
[384222745,1757293852288,-480.0,0.00015342,2]
[384222747,1757293852297,-517.58,0.00015342,2]
[384222749,1757293852306,-999.82,0.00015342,2]
[384222751,1757293852315,-2044.08,0.00015342,2]
[384222752,1757293852324,-674.31,0.00015342,2]
[384222754,1757293852333,-480.0,0.00015342,2]
[384222756,1757293852343,-480.0,0.00015342,2]
[384222758,1757293852352,-1129.35,0.00015342,2]
[384222760,1757293852362,-1758.04,0.00015342,2]
[384222762,1757293852371,-3605.43,0.00015342,2]
[384222764,1757293852381,-509.99,0.00015342,2]
[384222766,1757293852390,-1607.6,0.00015342,2]
[384222768,1757293852399,-480.0,0.00015342,2]
[384222770,1757293852408,-480.0,0.00015342,2]
[384222772,1757293852418,-480.0,0.00015342,2]
[384222774,1757293852428,-601.41,0.00015342,2]
[384222776,1757293852437,-689.51,0.00015342,2]
[384222778,1757293852447,-836.42,0.00015342,2]
[384222780,1757293852456,-480.0,0.00015342,2]
[384222782,1757293852466,-670.46,0.00015342,2]
[384222784,1757293852475,-480.0,0.00015342,2]
[384222786,1757293852485,-480.0,0.00015342,2]
[384222788,1757293852496,-480.0,0.00015342,2]
[384222790,1757293852507,-480.0,0.00015342,2]
[384222792,1757293852517,-1060.67,0.00015342,2]
[384222794,1757293852527,-480.0,0.00015342,2]
[384222796,1757293852536,-480.0,0.00015342,2]
[384222798,1757293852546,-15103.81,0.00015342,2]
[384222800,1757293852558,-480.0,0.00015342,2]
[384222802,1757293852567,-4210.01,0.00015342,2]
[384222804,1757293852577,-486.69219941,0.00015342,2]
[384222806,1757293852587,-648.02,0.00015342,2]
[384222808,1757293852596,-850.4,0.00015342,2]
[384222810,1757293852606,-793.9,0.00015342,2]
[384222812,1757293852616,-1124.8,0.00015342,2]
[384222814,1757293852627,-1960.88,0.00015342,2]
[384222816,1757293852641,-738.44,0.00015342,2]
[384222818,1757293852652,-2121.4,0.00015342,2]
[384222820,1757293852662,-3405.04,0.00015342,2]
[384222822,1757293852671,-1342.85,0.00015342,2]
[384222824,1757293852681,-815.74,0.00015342,2]
[384222826,1757293852690,-164.03211188,0.00015342,2]
[384222828,1757293852699,-1184.01,0.00015342,2]
[384222830,1757293852708,-994.51,0.00015342,2]
[384222832,1757293852718,-481.25,0.00015342,2]
[384222834,1757293852727,-480.0,0.00015342,2]
[384222836,1757293852737,-480.0,0.00015342,2]
[384222838,1757293852746,-656.64,0.00015342,2]
[384222840,1757293852755,-1618.62,0.00015342,2]
[384222842,1757293852765,-480.0,0.00015342,2]
[384222844,1757293852776,-544.3,0.00015342,2]
[384222846,1757293852786,-757.5,0.00015342,2]
[384222848,1757293852796,-1933.15,0.00015342,2]
[384222849,1757293852805,-556.54,0.00015342,2]
[384222851,1757293852815,-480.0,0.00015342,2]
[384222853,1757293852825,-586.27,0.00015342,2]
[384222855,1757293852836,-795.65,0.00015342,2]
[384222857,1757293852845,-1472.44,0.00015342,2]
[384222859,1757293852855,-921.72,0.00015342,2]
[384222862,1757293852865,-480.0,0.00015342,2]
[384222864,1757293852874,-699.17,0.00015342,2]
[384222866,1757293852883,-480.0,0.00015342,2]
[384222867,1757293852893,-2492.17,0.00015342,2]
[384222869,1757293852902,-480.0,0.00015342,2]
[384222871,1757293852912,-607.49,0.00015342,2]
[384222874,1757293852921,-1882.27,0.00015342,2]
[384222875,1757293852930,-747.39,0.00015342,2]
[384222878,1757293852940,-720.0,0.00015368,2]
[384222879,1757293852950,-2000.0,0.000155,2]
[384222881,1757293852960,-2000.0,0.000155,2]
[384222883,1757293852969,-160.0,0.00015543,2]
[384222886,1757293852980,-541.21600235,0.00015572,2]
[384222887,1757293852991,-500.0,0.00015572,2]
[384222889,1757293853001,-1000.0,0.00015572,2]
[384222892,1757293853010,-1000.0,0.00015572,2]
[384222893,1757293853019,-417.15472785,0.00015572,3]
[384222895,1757293853031,-12500.0,0.00015577,3]
[384222898,1757293853041,-12500.0,0.00015586,3]
[384222899,1757293853051,-417.15472785,0.00015586,3]
[384222901,1757293853062,-2257.12591935,0.00015586,3]
[384222903,1757293853072,-1068.25798197,0.00015592,2]
[384222905,1757293853082,-809.0,0.00015616,2]
[384222907,1757293853092,-480.0,0.00015616,2]
[384222909,1757293853102,-528.52,0.00015616,2]
[384222911,1757293853111,-480.0,0.00015616,2]
[384222913,1757293853121,-1030.35,0.00015616,2]
[384222915,1757293853131,-480.0,0.00015616,2]
[384222917,1757293853140,-562.31,0.00015616,2]
[384222919,1757293853149,-693.77,0.00015616,2]
[384222921,1757293853158,-691.63,0.00015616,2]
[384222923,1757293853168,-518.61,0.00015616,2]
[384222925,1757293853178,-546.97,0.00015616,2]
[384222927,1757293853187,-480.0,0.00015616,2]
[384222929,1757293853196,-480.0,0.00015616,2]
[384222931,1757293853206,-760.44,0.00015616,2]
[384222933,1757293853215,-480.0,0.00015616,2]
[384222935,1757293853225,-517.44,0.00015616,2]
[384222937,1757293853234,-858.83,0.00015616,2]
[384222939,1757293853244,-501.23,0.00015616,2]
[384222941,1757293853255,-588.46,0.00015616,2]
[384222943,1757293853264,-480.0,0.00015616,2]
[384222945,1757293853274,-480.0,0.00015616,2]
[384222947,1757293853283,-781.27,0.00015616,2]
[384222949,1757293853292,-480.0,0.00015616,2]
[384222950,1757293853302,-480.0,0.00015616,2]
[384222952,1757293853311,-612.64,0.00015616,2]
[384222954,1757293853321,-480.0,0.00015616,2]
[384222956,1757293853331,-480.0,0.00015616,2]
[384222958,1757293853340,-480.0,0.00015616,2]
[384222960,1757293853349,-480.0,0.00015616,2]
[384222962,1757293853359,-552.52,0.00015616,2]
[384222964,1757293853368,-850.07,0.00015616,2]
[384222966,1757293853377,-480.0,0.00015616,2]
[384222968,1757293853386,-6642.13,0.00015616,2]
[384222970,1757293853395,-417.15472785,0.00015616,3]
[384222972,1757293853405,-673.36,0.00015616,2]
[384222974,1757293853415,-1174.67,0.00015616,2]
[384222976,1757293853424,-480.0,0.00015616,2]
[384222978,1757293853433,-517.58,0.00015616,2]
[384222980,1757293853443,-999.82,0.00015616,2]
[384222982,1757293853452,-2044.08,0.00015616,2]
[384222984,1757293853461,-674.31,0.00015616,2]
[384222986,1757293853471,-480.0,0.00015616,2]
[384222988,1757293853481,-480.0,0.00015616,2]
[384222990,1757293853490,-1129.35,0.00015616,2]
[384223000,1757293853577,-1758.04,0.00015616,2]
[384223002,1757293853589,-3605.43,0.00015616,2]
[384223004,1757293853599,-509.99,0.00015616,2]
[384223006,1757293853608,-1607.6,0.00015616,2]
[384223008,1757293853617,-480.0,0.00015616,2]
[384223010,1757293853626,-480.0,0.00015616,2]
[384223012,1757293853636,-480.0,0.00015616,2]
[384223014,1757293853645,-601.41,0.00015616,2]
[384223016,1757293853654,-689.51,0.00015616,2]
[384223018,1757293853664,-836.42,0.00015616,2]
[384223020,1757293853674,-480.0,0.00015616,2]
[384223022,1757293853683,-670.46,0.00015616,2]
[384223024,1757293853693,-480.0,0.00015616,2]
[384223026,1757293853702,-480.0,0.00015616,2]
[384223028,1757293853711,-480.0,0.00015616,2]
[384223030,1757293853721,-480.0,0.00015616,2]
[384223032,1757293853730,-1060.67,0.00015616,2]
[384223034,1757293853739,-480.0,0.00015616,2]
[384223035,1757293853749,-480.0,0.00015616,2]
[384223037,1757293853759,-15103.81,0.00015616,2]
[384223039,1757293853768,-480.0,0.00015616,2]
[384223041,1757293853778,-4210.01,0.00015616,2]
[384223043,1757293853787,-648.02,0.00015616,2]
[384223045,1757293853796,-850.4,0.00015616,2]
[384223047,1757293853806,-793.9,0.00015616,2]
[384223049,1757293853816,-1124.8,0.00015616,2]
[384223052,1757293853826,-1960.88,0.00015616,2]
[384223053,1757293853835,-738.44,0.00015616,2]
[384223055,1757293853845,-2121.4,0.00015616,2]
[384223057,1757293853854,-3405.04,0.00015616,2]
[384223059,1757293853863,-1342.85,0.00015616,2]
[384223061,1757293853873,-815.74,0.00015616,2]
[384223064,1757293853883,-1184.01,0.00015616,2]
[384223065,1757293853893,-994.51,0.00015616,2]
[384223067,1757293853903,-481.25,0.00015616,2]
[384223069,1757293853912,-480.0,0.00015616,2]
[384223071,1757293853923,-480.0,0.00015616,2]
[384223073,1757293853933,-656.64,0.00015616,2]
[384223076,1757293853944,-1618.62,0.00015616,2]
[384223077,1757293853954,-480.0,0.00015616,2]
[384223080,1757293853964,-544.3,0.00015616,2]
[384223082,1757293853973,-757.5,0.00015616,2]
[384223084,1757293853983,-1933.15,0.00015616,2]
[384223086,1757293853993,-556.54,0.00015616,2]
[384223087,1757293854002,-480.0,0.00015616,2]
[384223088,1757293854011,-586.27,0.00015616,2]
[384223089,1757293854021,-795.65,0.00015616,2]
[384223090,1757293854030,-1472.44,0.00015616,2]
[384223091,1757293854040,-921.72,0.00015616,2]
[384223092,1757293854048,-480.0,0.00015616,2]
[384223093,1757293854057,-699.17,0.00015616,2]
[384223094,1757293854067,-480.0,0.00015616,2]
[384223095,1757293854076,-2492.17,0.00015616,2]
[384223096,1757293854086,-480.0,0.00015616,2]
[384223097,1757293854095,-607.49,0.00015616,2]
[384223098,1757293854104,-1882.27,0.00015616,2]
[384223099,1757293854113,-747.39,0.00015616,2]
[384223100,1757293854122,-2600.0,0.00015616,2]
[384223101,1757293854131,-500.0,0.0001565,2]
[384223102,1757293854140,-1000.0,0.0001565,2]
[384223103,1757293854149,-500.42882159,0.0001565,2]
[384223104,1757293854158,-941.54367256,0.0001565,2]
[384223105,1757293854167,-1000.0,0.0001565,2]
[384223106,1757293854176,-1000.0,0.0001565,2]
[384223107,1757293854185,-502.64512095,0.0001565,2]
[384223108,1757293854195,-1000.0,0.0001565,2]
[384223109,1757293854204,-500.0,0.00015673,2]
[384223110,1757293854212,-278.18859244,0.00015673,2]
[384223111,1757293854222,-395.12436769,0.00015673,2]
[384223112,1757293854231,-500.0,0.00015673,2]
[384223113,1757293854239,-500.0,0.00015673,2]
[384223114,1757293854248,-500.0,0.00015673,2]
[384223115,1757293854258,-500.0,0.00015673,2]
[384223116,1757293854266,-500.0,0.00015673,2]
[384223118,1757293854275,-502.79860738,0.00015673,2]
[384223120,1757293854285,-500.0,0.00015673,2]
[384223122,1757293854295,-500.0,0.00015673,2]
[384223124,1757293854304,-500.0,0.00015673,2]
[384223126,1757293854313,-500.0,0.00015673,2]
[384223128,1757293854322,-500.0,0.00015673,2]
[384223130,1757293854331,-156.3830977,0.00015673,2]
[384223132,1757293854342,-500.0,0.00015673,2]
[384223134,1757293854351,-500.0,0.00015673,2]
[384223136,1757293854361,-500.0,0.00015673,2]
[384223138,1757293854370,-500.0,0.00015673,2]
[384223139,1757293854379,-500.0,0.00015673,2]
[384223142,1757293854390,-482.18096823,0.00015673,2]
[384223143,1757293854399,-180.27103502,0.00015678,2]
[384223145,1757293854409,-1500.0,0.00015678,2]
[384223148,1757293854418,-1017.01247362,0.00015678,2]
[384223149,1757293854427,-139711.7185554,0.000157,2]
[384223151,1757293854437,-1500.0,0.00015753,2]
[384223153,1757293854447,-77862.97539844,0.000158,2]
[384223156,1757293854457,-500.0,0.00015875,2]
[384223157,1757293854467,-809.0,0.0001589,2]
[384223159,1757293854476,-480.0,0.0001589,2]
[384223161,1757293854486,-528.52,0.0001589,2]
[384223163,1757293854495,-480.0,0.0001589,2]
[384223165,1757293854505,-1030.35,0.0001589,2]
[384223167,1757293854514,-480.0,0.0001589,2]
[384223169,1757293854524,-562.31,0.0001589,2]
[384223171,1757293854534,-693.77,0.0001589,2]
[384223173,1757293854543,-691.63,0.0001589,2]
[384223175,1757293854555,-518.61,0.0001589,2]
[384223177,1757293854565,-546.97,0.0001589,2]
[384223179,1757293854575,-480.0,0.0001589,2]
[384223181,1757293854584,-480.0,0.0001589,2]
[384223183,1757293854595,-760.44,0.0001589,2]
[384223185,1757293854605,-480.0,0.0001589,2]
[384223187,1757293854614,-517.44,0.0001589,2]
[384223189,1757293854625,-858.83,0.0001589,2]
[384223191,1757293854635,-501.23,0.0001589,2]
[384223193,1757293854645,-588.46,0.0001589,2]
[384223195,1757293854655,-480.0,0.0001589,2]
[384223197,1757293854664,-480.0,0.0001589,2]
[384223199,1757293854674,-781.27,0.0001589,2]
[384223201,1757293854684,-480.0,0.0001589,2]
[384223203,1757293854694,-596.98289518,0.0001589,2]
[384223205,1757293854703,-612.64,0.0001589,2]
[384223207,1757293854714,-480.0,0.0001589,2]
[384223209,1757293854723,-480.0,0.0001589,2]
[384223211,1757293854732,-480.0,0.0001589,2]
[384223213,1757293854741,-480.0,0.0001589,2]
[384223215,1757293854751,-552.52,0.0001589,2]
[384223217,1757293854759,-850.07,0.0001589,2]
[384223219,1757293854769,-480.0,0.0001589,2]
[384223220,1757293854778,-6642.13,0.0001589,2]
[384223222,1757293854788,-673.36,0.0001589,2]
[384223224,1757293854798,-1174.67,0.0001589,2]
[384223226,1757293854807,-480.0,0.0001589,2]
[384223228,1757293854816,-517.58,0.0001589,2]
[384223230,1757293854826,-999.82,0.0001589,2]
[384223232,1757293854835,-2044.08,0.0001589,2]
[384223234,1757293854844,-674.31,0.0001589,2]
[384223236,1757293854855,-480.0,0.0001589,2]
[384223238,1757293854865,-480.0,0.0001589,2]
[384223240,1757293854874,-1129.35,0.0001589,2]
[384223242,1757293854883,-1758.04,0.0001589,2]
[384223244,1757293854893,-3605.43,0.0001589,2]
[384223246,1757293854904,-509.99,0.0001589,2]
[384223248,1757293854915,-1607.6,0.0001589,2]
[384223250,1757293854924,-480.0,0.0001589,2]
[384223252,1757293854934,-480.0,0.0001589,2]
[384223254,1757293854943,-480.0,0.0001589,2]
[384223256,1757293854952,-601.41,0.0001589,2]
[384223258,1757293854962,-689.51,0.0001589,2]
[384223260,1757293854971,-836.42,0.0001589,2]
[384223262,1757293854981,-480.0,0.0001589,2]
[384223264,1757293854990,-670.46,0.0001589,2]
[384223266,1757293855000,-480.0,0.0001589,2]
[384223268,1757293855010,-480.0,0.0001589,2]
[384223270,1757293855019,-480.0,0.0001589,2]
[384223272,1757293855029,-480.0,0.0001589,2]
[384223274,1757293855038,-1060.67,0.0001589,2]
[384223276,1757293855047,-480.0,0.0001589,2]
[384223278,1757293855056,-480.0,0.0001589,2]
[384223280,1757293855066,-15103.81,0.0001589,2]
[384223282,1757293855076,-623.96004739,0.0001589,2]
[384223292,1757293855164,-4210.01,0.0001589,2]
[384223294,1757293855174,-648.02,0.0001589,2]
[384223296,1757293855183,-850.4,0.0001589,2]